Cogmind - Beta 16 @@@ ROGUE MODE // 2025.12.17 @ 20:09:49 Player: FretfulMantis Result: Destroyed by S-27 Virus with Autogun Performance ------------- Evolutions (3) 1500 Regions Visited (7) 1400 Robots Destroyed (91) 455 Value Destroyed (3124) 3124 Prototype IDs (7) 140 Alien Tech Used (0) 0 Bonus (850) 850 TOTAL SCORE: 7469 Bonus ------- High Alert Combat Kills 150 Entered Garrisons 200 Used RIF Installer 500 Cogmind --------- Core Integrity 0/700 Matter 173/300 Energy 100/100 System Corruption 4% Temperature Cool (0) Movement Core (200) Ox3 Location -7/Factory Parts ------- > --- POWER (1) -------- (None) > --- PROPULSION (4) --- (None) > --- UTILITY (5) ------ Medium Storage Unit Improved Signal Interpreter Relay Coupler [NC] (22) Relay Coupler [Specialist] (24) > --- WEAPON (3) ------- (None) > --- INVENTORY (10) --- Large Storage Unit Large Matter Pod (43) Improved Terrain Scanner System Shield Peak State ------------ > --- POWER ------------ Improved Deuterium Engine > --- PROPULSION ------- Medium Treads Armored Wheel Armored Huge Wheel > --- UTILITY ---------- Huge Storage Unit Improved Sensor Array Improved Signal Interpreter Authchip [R/Combat] Corruption Screen > --- WEAPON ----------- High-powered Shotgun Gauss Rifle Precision Assault Rifle > --- INVENTORY -------- Nuclear Core Light Nuclear Core Light Nuclear Core Light Treads Carbon-fiber Leg Advanced Heat Sink Large Storage Unit Large Matter Pod Improved Terrain Scanner Advanced Terrain Scan Processor Transport Network Coupler Improved Light Armor Plating System Shield Relay Coupler [NC] Relay Coupler [Grunt] Relay Coupler [Specialist] Dynamic Insulation System Corruption Screen Tractor Beam Recalibrator Heavy Assault Rifle Improved Assault Rifle High-powered Shotgun Mini Grenade Launcher Maul [Rating: 51] Favorites ----------- Power Nuclear Core Engine Improved Deuterium Engine Power Core Nuclear Core Propulsion Light Treads Treads Light Treads Leg Improved Carbon-fiber Leg Wheel Armored Wheel Flight Unit Improved Flight Unit Utility Huge Storage Unit Device Improved Sensor Array Storage Huge Storage Unit Processor Improved Signal Interpreter Hackware Relay Coupler [NC] Protection Light Armor Plating Weapon High-powered Shotgun Energy Gun Improved Medium Laser Ballistic Gun High-powered Shotgun Launcher Mini Grenade Launcher Special Weapon Remote Datajack Impact Weapon Maul Build | -11 -10 -9 -8 -8 -7 -7 -7 ------- Run | Yrd Mat Mat Mat Gar Fac Was Fac Slots Evolved 6 | . . 2 2 . 2 . . Power . | . . . . . . . . Propulsion 2 | . . 1 1 . . . . Utility 3 | . . 1 1 . 1 . . Weapon 1 | . . . . . 1 . . Parts Attached 68 | 6 2 12 11 6 27 1 3 Power 7 | 1 . 2 . 1 2 . 1 Engine 2 | 1 . . . . 1 . . Core 5 | . . 2 . 1 1 . 1 Reactor . | . . . . . . . . Propulsion 20 | 2 . 5 2 2 8 . 1 Treads 16 | 2 . 4 2 2 6 . . Leg 1 | . . . . . . . 1 Wheel 2 | . . . . . 2 . . Hover . | . . . . . . . . Flight 1 | . . 1 . . . . . Utility 23 | 1 2 2 5 1 10 1 1 Device 8 | . 1 . 3 . 3 1 . Storage 3 | 1 1 . . . . . 1 Processor 2 | . . . 1 . 1 . . Hackware 4 | . . . . . 4 . . Protection 6 | . . 2 1 1 2 . . Artifact . | . . . . . . . . Weapon 18 | 2 . 3 4 2 7 . . Energy Gun 4 | 2 . 2 . . . . . Energy Cannon . | . . . . . . . . Ballistic Gun 11 | . . 1 3 2 5 . . Ballistic Cannon . | . . . . . . . . Launcher 1 | . . . . . 1 . . Special Weapon 1 | . . . . . 1 . . Impact Weapon 1 | . . . 1 . . . . Slashing Weapon . | . . . . . . . . Piercing Weapon . | . . . . . . . . Special Melee Weapon . | . . . . . . . . Unidentified Prototypes 4 | . . 3 . . 1 . . Parts Lost 27 | . 1 4 1 3 11 4 3 Power 4 | . . . . 1 1 1 1 Propulsion 10 | . . 1 . 1 5 2 1 Utility 9 | . . 2 1 1 4 . 1 Weapon 4 | . 1 1 . . 1 1 . Highest Loss Streak 4 | . 1 2 1 1 3 4 3 To Critical Strikes . | . . . . . . . . Average Backups 21 | 4 8 23 23 24 24 16 3 Power 2 | . 1 3 2 1 2 1 . Propulsion 5 | 3 4 8 6 5 3 1 . Utility 10 | . 2 8 9 11 13 9 3 Weapon 4 | . . 3 5 6 5 3 . Tool/Special . | . . . . . . . . Unused Backups 32 | . 1 5 3 5 5 9 4 Power 5 | . 1 2 . . . 2 . Propulsion 8 | . . 2 2 1 2 1 . Utility 13 | . . . 1 2 1 5 4 Weapon 5 | . . 1 . 1 2 1 . Tool/Special 1 | . . . . 1 . . . Average Slot Usage (%) 92 | . 87 95 97 97 94 61 42 Engine 2 | . 14 2 . . 4 . . Core 5 | . . 8 9 8 2 4 2 Treads 27 | . 28 32 35 35 18 . . Wheel 2 | . . . . . 7 8 . Device 8 | . 12 10 12 9 6 . 6 Storage 8 | . 14 11 9 9 7 4 2 Processor 7 | . . . 4 9 13 7 7 Hackware 1 | . . . . . . 23 20 Protection 7 | . . 10 8 7 7 . . Energy Gun 4 | . 17 13 4 . . . . Ballistic Gun 13 | . . 5 13 16 20 8 . Peak Build Rating 51 | 6 7 21 26 28 51 45 26 Average Rating 26 | 4 6 16 22 26 41 28 19 On Entrance 18 | . 6 7 18 26 27 45 17 Avg Prop Armor Cover (%) 6 | . . . . . 6 . . Naked Turns . | . . . . . . . . Heaviest Build 113 | 12 86 97 98 104 113 98 25 Greatest Support 80 | 40 40 60 80 80 80 40 18 Greatest Overweight (x) 32 | . 2 32 1 1 2 7 4 Average Overweight (x) 1 | . . 1 1 1 1 1 1 Largest Inventory Capacity 25 | 8 25 25 25 25 25 25 10 Average Capacity 23 | 7 18 25 25 25 25 16 6 Most Carried 25 | 6 12 25 25 25 25 23 5 Average Carried 22 | 4 8 23 23 24 24 15 3 Final Capacity 25 | 8 25 25 25 25 25 5 10 Final Carried 25 | 5 12 25 25 25 23 4 4 Class Distribution -------------------- 74% | Mutant 17% | Skirmisher Dominant Class ---------------- Mutant | -10/Materials Mutant | -9/Materials Mutant | -8/Materials Mutant | -8/Garrison Skirmisher | -7/Factory Gunner | -7/Waste Mutant | -7/Factory Resources | -11 -10 -9 -8 -8 -7 -7 -7 ----------- Run | Yrd Mat Mat Mat Gar Fac Was Fac Matter Collected 2322 | 248 25 296 281 391 1070 . 11 Remotely 50 | . . . . . 50 . . Salvage Created 2978 | 47 239 888 494 474 836 . . Parts 182 | 6 12 51 34 35 44 . . Haulers Intercepted 6 | . . 4 1 . 1 . . Recyclers Shooed 6 | 1 . 2 1 . 2 . . Parts Field Recycled . | . . . . . . . . Retrieved Matter . | . . . . . . . . Parts Self-Destructed . | . . . . . . . . Prevented . | . . . . . . . . Parts Restored 1 | . . . . . . . 1 Broken 1 | . . . . . . . 1 Kills | -11 -10 -9 -8 -8 -7 -7 -7 ------- Run | Yrd Mat Mat Mat Gar Fac Was Fac Combat Hostiles Destroyed 71 | . 3 15 11 20 22 . . Guns 71 | . 3 15 11 20 22 . . Classes Destroyed 14 | 2 4 4 . 2 2 . . Worker 5 | 1 . . 1 . 3 . . Builder 1 | . 1 . . . . . . Tunneler 2 | 2 . . . . . . . Hauler 6 | . . 4 1 . 1 . . Recycler 2 | . 1 1 . . . . . Mechanic 1 | . . 1 . . . . . Operator 1 | . . . . . 1 . . Watcher 2 | . 1 1 . . . . . Swarmer 24 | . . 5 4 8 7 . . Cutter 2 | . . . . 2 . . . Grunt 19 | . 3 4 3 5 4 . . Sentry 18 | . . 6 4 4 4 . . Hunter 3 | . . . . . 3 . . Programmer 5 | . . . . 1 4 . . Best Kill Streak 6 | 3 2 4 4 6 4 . . Combat Bots Only 6 | . 2 3 4 6 4 . . Max Kills in Single Turn 2 | 1 1 2 1 1 2 . . Gunslinging 1 | . . 1 . . . . . Exploded . | . . . . . . . . Melee . | . . . . . . . . Uniques/NPCs Destroyed . | . . . . . . . . Combat | -11 -10 -9 -8 -8 -7 -7 -7 -------- Run | Yrd Mat Mat Mat Gar Fac Was Fac Hostile Shots Fired 568 | . 10 114 40 114 231 3 56 Missed 140 | . 6 31 10 33 57 . 3 Hits 428 | . 4 83 30 81 174 3 53 Melee 11 | . . . . 8 . 3 . Projectile 417 | . 4 83 30 73 174 . 53 Critical Strikes 20 | . . 3 . 10 4 2 1 Damage Taken 5746 | 32 71 970 417 881 2492 103 780 Core 926 | . . 47 88 79 203 72 437 Absorbed by Shields . | . . . . . . . . Ignored by Resistances 225 | . . . . 40 185 . . Core Remaining (%) 89 | 100 100 88 . 69 . . . Volleys Fired 247 | 5 13 73 30 52 74 . . Largest 3 | 2 2 2 2 2 3 . . Hottest 112 | 80 80 112 79 50 78 . . Shots Fired 502 | 10 16 126 59 99 192 . . Gun 494 | 10 16 126 59 99 184 . . Cannon . | . . . . . . . . Launcher 4 | . . . . . 4 . . Special 4 | . . . . . 4 . . Kinetic 358 | . . 31 44 99 184 . . Thermal 90 | . . 75 15 . . . . Explosive 4 | . . . . . 4 . . Electromagnetic 46 | 10 16 20 . . . . . Robot Hit Streak 18 | 7 9 15 14 9 18 . . Robot Miss Streak 11 | 1 2 4 3 6 11 . . Penetration Max . | . . . . . . . . Secondary Targets 5 | . . 1 . 2 2 . . Max Gunslinging Chain 1 | . . 1 . 1 1 . . Shots Hit Robots 361 | 8 12 85 43 61 152 . . Core Hits 176 | 2 6 32 23 36 74 . 3 Critical Kills 1 | . . . . . 1 . . Critical Parts Destroyed 4 | . . . . . 4 . . Critical Strikes 13 | . 2 6 . . 5 . . Burn 6 | . . 6 . . . . . Destroy 4 | . . . . . 4 . . Corrupt 2 | . 2 . . . . . . Smash 1 | . . . . . 1 . . Melee Attacks 21 | . . . 2 1 18 . . Impact 21 | . . . 2 1 18 . . Slashing . | . . . . . . . . Piercing . | . . . . . . . . Sneak Attacks 2 | . . . . . 2 . . Combat Hostiles . | . . . . . . . . Follow-up Attacks . | . . . . . . . . Damage Inflicted 6818 | 157 252 1352 718 1316 3001 . 22 Guns 6265 | 108 185 1352 685 1316 2619 . . Cannons . | . . . . . . . . Explosions 235 | 45 59 . . . 131 . . Melee 157 | . . . . . 157 . . Ramming 161 | 4 8 . 33 . 94 . 22 Kinetic 4714 | . . 287 492 1316 2619 . . Thermal 1199 | 45 59 902 193 . . . . Explosive 131 | . . . . . 131 . . Electromagnetic 456 | 108 185 163 . . . . . Impact 157 | . . . . . 157 . . Slashing . | . . . . . . . . Piercing . | . . . . . . . . Highest Corruption 4 | . . . . 2 2 2 4 Average Corruption 1 | . . . . 1 1 2 2 Corruption Purged . | . . . . . . . . Corruption Blocked 8 | . . . . . 8 . . Effects 29 | . . . . 20 2 1 6 Message Errors 9 | . . . . 8 . . 1 Matter Fused 3 | . . . . 1 . 1 1 Heat Flow Errors 2 | . . . . . . . 2 Energy Discharges 7 | . . . . 4 2 . 1 Parts Fused 1 | . . . . 1 . . . Data Loss (minor) 5 | . . . . 4 . . 1 Misfires 1 | . . . . 1 . . . Weapon Failures 1 | . . . . 1 . . . Overload Shots . | . . . . . . . . Overflow Damage 148 | . 18 . . . 130 . . Projectiles . | . . . . . . . . Explosions 18 | . 18 . . . . . . Melee 130 | . . . . . 130 . . Knockbacks 2 | . . . 1 . 1 . . Impact 2 | . . . 1 . 1 . . Kinetic . | . . . . . . . . Secondary . | . . . . . . . . Self-Inflicted Damage 531 | 32 6 . . . 492 . 1 Shots 8 | 1 1 . . . 6 . . Rammed 16 | 1 2 1 3 . 5 . 4 Targets Rammed 26 | 2 3 1 3 . 5 . 12 Kicked 8 | . . . . . . . 8 Crushed 2 | 1 1 . . . . . . Highest Temperature 210 | 48 6 180 81 42 210 . 199 Average Temperature 38 | 19 2 50 20 22 41 . 96 Received Heat Transfer 1107 | . 36 342 144 162 423 . . Siege Activations . | . . . . . . . . Martial Activations . | . . . . . . . . Shielding Activations . | . . . . . . . . Robots Disrupted . | . . . . . . . . Combat Hostiles . | . . . . . . . . Robots Corrupted . | . . . . . . . . Combat Hostiles . | . . . . . . . . Parts Fried 1 | . 1 . . . . . . Impact Corruptions 4 | . . . . . 4 . . Robots Melted . | . . . . . . . . Combat Hostiles . | . . . . . . . . Parts Melted 15 | . 1 12 2 . . . . Heat Transferred 2986 | . 100 2479 407 . . . . Parts Sabotaged . | . . . . . . . . Parts Stolen . | . . . . . . . . Parts Stripped . | . . . . . . . . Power Chain Reactions 2 | 1 1 . . . . . . Alert | -11 -10 -9 -8 -8 -7 -7 -7 ------- Run | Yrd Mat Mat Mat Gar Fac Was Fac Maximum Alert Level 3 | . . . . 3 2 . . Low Security (%) 54 | 100 100 100 100 12 17 100 100 Level 1 19 | . . . . 21 46 . . Level 2 18 | . . . . 32 36 . . Level 3 7 | . . . . 33 . . . Level 4 . | . . . . . . . . Level 5 . | . . . . . . . . High Security . | . . . . . . . . Max Security . | . . . . . . . . Peak Influence 839 | 5 45 104 127 839 543 189 83 Initial 440 | . 3 . 42 65 440 189 83 Average 231 | . 9 16 44 507 332 152 23 Influence Increases 2710 | 15 126 453 374 804 893 . 45 Destroy 0b10 Robot/C 1420 | . 60 300 220 400 440 . . Destroy 0b10 Robot/NC 100 | 15 15 35 10 . 25 . . Destroy Leader 356 | . 22 100 62 20 152 . . Successful Hack 47 | . 11 14 3 14 5 . . Select Force Hacks 30 | . . . . . 30 . . Disable Machine 135 | . . . 15 . 120 . . Anti-Garrison Action 350 | . . . . 350 . . . Destroy Structure 77 | . 3 4 4 5 61 . . Partial Spotted 15 | . . . . . 15 . . Lose Combat Pursuer 180 | . 15 . 60 15 45 . 45 Influence Decreases 2705 | 10 131 352 375 65 1191 422 159 Entered New Map 883 | . 2 . 59 35 399 352 36 Time Decay 1552 | 10 119 322 306 . 662 30 103 Lost Part 250 | . 10 30 10 30 110 40 20 Lost Ally 20 | . . . . . 20 . . Squads Dispatched 14 | . 1 2 1 . 10 . . Investigation 3 | . . . . . 3 . . Extermination 5 | . . . . . 5 . . Reinforcement 5 | . 1 2 1 . 1 . . Assault 1 | . . . . . 1 . . Garrison . | . . . . . . . . Intercept . | . . . . . . . . Searches Triggered . | . . . . . . . . Construction Impeded . | . . . . . . . . Haulers Reinforced . | . . . . . . . . Active Scanning Responses . | . . . . . . . . Cargo Convoy Interrupts 1 | . . . . . 1 . . Stealth | -11 -10 -9 -8 -8 -7 -7 -7 --------- Run | Yrd Mat Mat Mat Gar Fac Was Fac Distress Signals 4 | . . 3 . . 1 . . Communications Jammed . | . . . . . . . . Distress Signals . | . . . . . . . . Times Spotted 122 | . 8 31 22 20 30 5 6 Peak Tracking Total 5 | . 2 5 3 4 4 5 4 Tactical Retreats 9 | . 1 . 3 1 2 . 2 Traps | -11 -10 -9 -8 -8 -7 -7 -7 ------- Run | Yrd Mat Mat Mat Gar Fac Was Fac Traps Triggered 5 | . . . . 4 1 . . Indirectly . | . . . . . . . . Trap Hack Attempts . | . . . . . . . . Triggered . | . . . . . . . . Disarmed . | . . . . . . . . Reprogrammed . | . . . . . . . . Reused . | . . . . . . . . Traps Extracted . | . . . . . . . . Installed . | . . . . . . . . Triggered . | . . . . . . . . Machines | -11 -10 -9 -8 -8 -7 -7 -7 ---------- Run | Yrd Mat Mat Mat Gar Fac Was Fac Machines Disabled 11 | . . . 1 2 8 . . Max in Single Turn 6 | . . . 1 1 6 . . Garrison Relay 2 | . . . . 2 . . . Machines Repaired . | . . . . . . . . Machines Dismantled . | . . . . . . . . Machines Sabotaged . | . . . . . . . . Overloaded Fab Kills . | . . . . . . . . Hacking | -11 -10 -9 -8 -8 -7 -7 -7 --------- Run | Yrd Mat Mat Mat Gar Fac Was Fac Machines Accessed 21 | . 3 4 3 3 8 . . Terminals 19 | . 3 4 2 3 7 . . Fabricators . | . . . . . . . . Repair Stations . | . . . . . . . . Recycling Units . | . . . . . . . . Scanalyzers 1 | . . . . . 1 . . Garrison Access 1 | . . . 1 . . . . Total Hacks 46 | . 7 12 5 6 16 . . Successful 20 | . 5 7 3 2 3 . . Failed 26 | . 2 5 2 4 13 . . Catastrophic 6 | . . 1 . 1 4 . . Database Lockouts . | . . . . . . . . Manual 29 | . 6 9 3 . 11 . . Terminals 44 | . 7 12 4 6 15 . . Fabricators . | . . . . . . . . Repair Stations . | . . . . . . . . Recycling Units . | . . . . . . . . Scanalyzers 1 | . . . . . 1 . . Garrison Access 1 | . . . 1 . . . . Terminal Hacks 10 | . 2 5 . 2 1 . . Robot Analysis 2 | . 1 1 . . . . . Prototype ID Bank 2 | . . 2 . . . . . Level Access Points 1 | . 1 . . . . . . Emergency Access Points 2 | . . . . 1 1 . . Terminal Index 1 | . . 1 . . . . . Alert Level 1 | . . 1 . . . . . Garrison Registry 1 | . . . . 1 . . . Fabricator Hacks . | . . . . . . . . Repair Station Hacks . | . . . . . . . . Recycling Unit Hacks . | . . . . . . . . Scanalyzer . | . . . . . . . . Garrison Access Hacks 1 | . . . 1 . . . . Unlock Access 1 | . . . 1 . . . . Unauthorized Hacks 9 | . 3 2 2 . 2 . . Terminals 8 | . 3 2 2 . 1 . . Botnet 8 | . 3 2 2 . 1 . . Fabricators . | . . . . . . . . Repair Stations . | . . . . . . . . Recycling Units . | . . . . . . . . Scanalyzers 1 | . . . . . 1 . . Extract 1 | . . . . . 1 . . Garrison Access . | . . . . . . . . Data Cores Recovered . | . . . . . . . . Used . | . . . . . . . . Hacking Detections 18 | . 3 4 2 2 7 . . Full Trace Events 3 | . . . . 1 2 . . Feedback Events . | . . . . . . . . Feedback Blocked . | . . . . . . . . Robot Schematics Acquired . | . . . . . . . . Robots Built . | . . . . . . . . Authchips . | . . . . . . . . Time . | . . . . . . . . Total Robot Build Rating . | . . . . . . . . Part Schematics Acquired 4 | . . . . . 4 . . Parts Built . | . . . . . . . . Authchips . | . . . . . . . . Time . | . . . . . . . . Total Part Build Rating . | . . . . . . . . Part Studies Acquired . | . . . . . . . . Parts Repaired . | . . . . . . . . Time . | . . . . . . . . Parts Recycled . | . . . . . . . . Recycled Matter . | . . . . . . . . Retrieved Matter . | . . . . . . . . Retrieved Components . | . . . . . . . . Parts Scanalyzed . | . . . . . . . . Part Schematics Acquired . | . . . . . . . . Parts Damaged . | . . . . . . . . Bothacking | -11 -10 -9 -8 -8 -7 -7 -7 ------------ Run | Yrd Mat Mat Mat Gar Fac Was Fac Used RIF Installer 1 | . . . . 1 . . . Robots Hacked 2 | . . . . . 2 . . Non-combat . | . . . . . . . . Combat 2 | . . . . . 2 . . Robot Hacks Applied 3 | . . . . . 3 . . find_shortcuts 1 | . . . . . 1 . . reboot_propulsion 1 | . . . . . 1 . . formatsys_high 1 | . . . . . 1 . . Relay Couplers Released 11 | . . . . 11 . . . Machine Destruction 7 | . . . . 7 . . . Programmers 4 | . . . . 4 . . . Attached 3 | . . . . . 3 . . Fabnet Peak Effective % . | . . . . . . . . Robots Rewired . | . . . . . . . . Allies Hacked . | . . . . . . . . Hacks Repelled . | . . . . . . . . Allies | -11 -10 -9 -8 -8 -7 -7 -7 -------- Run | Yrd Mat Mat Mat Gar Fac Was Fac Total Allies 1 | . . . . . 1 . . Largest Group 1 | . . . . . 1 . . Highest-Rated Group 16 | . . . . . 16 . . Highest-Rated Ally 16 | . . . . . 16 . . Total Orders . | . . . . . . . . Ally Attacks . | . . . . . . . . Total Damage . | . . . . . . . . Kills . | . . . . . . . . Allies Corrupted . | . . . . . . . . Allies Melted . | . . . . . . . . Intel | -11 -10 -9 -8 -8 -7 -7 -7 ------- Run | Yrd Mat Mat Mat Gar Fac Was Fac Active Infowar (turns) 4651 | . . . 985 1802 1864 . . Sensors 4651 | . . . 985 1802 1864 . . Structural 467 | . . . 467 . . . . Robot Analysis Total 2 | . 1 1 . . . . . Derelict Logs Recovered . | . . . . . . . . Drone Launches . | . . . . . . . . Drone Recoveries . | . . . . . . . . Exploration | -11 -10 -9 -8 -8 -7 -7 -7 ------------- Run | Yrd Mat Mat Mat Gar Fac Was Fac Turns Passed 7957 | 105 451 1618 1060 1802 2507 74 340 Spaces Moved 3039 | 48 169 536 275 667 1178 88 78 Core 106 | 3 . 2 . . . 59 42 Treads 2156 | 45 169 534 275 667 466 . . Legs 36 | . . . . . . . 36 Wheels 741 | . . . . . 712 29 . Hover . | . . . . . . . . Flight . | . . . . . . . . Fastest Speed 50 | 50 160 240 240 240 125 50 50 Average Speed 206 | 153 233 247 240 240 170 80 174 Slowest Speed 1650 | 160 320 1650 240 240 240 195 250 Overloaded Moves . | . . . . . . . . Propulsion Burnouts . | . . . . . . . . Robots Hopped . | . . . . . . . . Potential Cave-ins . | . . . . . . . . Cave-ins Triggered . | . . . . . . . . Exploration Rate (%) 38 | 6 39 53 24 75 34 76 1 Regions Visited 7 Branch Regions . Pre-discovered Areas . | . . . . . . . . Known Exits Taken 2 | . 1 . 1 . . . . Unknown Exits Taken 2 | 1 . 1 . . . . . Scrap Searched . | . . . . . . . . Spaces Dug 15 | . . . 1 . 14 . . Terrain Destroyed 67 | 3 2 . 1 . 61 . . Melee 15 | . . . 1 . 14 . . Projectile . | . . . . . . . . AOE 52 | 3 2 . . . 47 . . Terrain Rammed . | . . . . . . . . Walls Destroyed . | . . . . . . . . Machines Disabled . | . . . . . . . . Actions | -11 -10 -9 -8 -8 -7 -7 -7 --------- Run | Yrd Mat Mat Mat Gar Fac Was Fac Total 4207 | 66 206 707 613 774 1481 90 270 Wait 662 | . 10 48 276 17 138 . 173 Move 3033 | 48 168 535 274 665 1178 87 78 Hop . | . . . . . . . . Pick Up 77 | 6 8 25 8 13 15 1 1 Fast Attach 27 | 5 1 6 3 2 8 . 2 Attach 33 | 1 . 6 4 6 13 1 2 Detach 8 | . . 1 1 . 4 . 2 Swap 20 | . 1 . 4 1 14 . . Drop 46 | . 2 12 8 9 14 1 . Fire 247 | 5 13 73 30 52 74 . . Melee 21 | . . . 2 1 18 . . Ram 6 | . . . . . 2 . 4 Kick 8 | . . . . . . . 8 Crush 11 | 1 3 1 3 . 3 . . Escape Stasis 8 | . . . . 8 . . . Rewire . | . . . . . . . . Trap . | . . . . . . . . Miscellaneous . | . . . . . . . . Route ------- -11/Scrapyard -10/Materials (discovered 3 exits: *Mat x3) -9/Materials -8/Materials (discovered 2 exits: *Fac / Gar) -8/Garrison (discovered 3 exits: *Fac x3) -7/Factory -7/Waste -7/Factory History --------- Turn | Location | Event 2 | -11/Scrapyard | Met Revision 17 14 | -11/Scrapyard | Discovered new exit (range 15) 106 | -11/Scrapyard | Entered Materials 296 | -10/Materials | Identified exit to Materials 305 | -10/Materials | Build established: Mutant 557 | -10/Materials | Entered another Materials area 557 | -9/Materials | Evolved 2 slots: Propulsion x1, Utility x1 2117 | -9/Materials | Discovered new exit (range 6) 2175 | -9/Materials | Entered another Materials area 2175 | -8/Materials | Evolved 2 slots: Propulsion x1, Utility x1 3125 | -8/Materials | Discovered new exit (range 15) 3159 | -8/Materials | Identified exit to Factory 3204 | -8/Materials | Identified exit to Garrison 3235 | -8/Materials | Entered Garrison 3379 | -8/Garrison | Triggered checkpoint 3481 | -8/Garrison | Discovered exit to Factory (range 12) 3545 | -8/Garrison | Garrison Relay disabled 3605 | -8/Garrison | Triggered checkpoint 3652 | -8/Garrison | Garrison Relay disabled 3851 | -8/Garrison | Triggered checkpoint 4017 | -8/Garrison | Triggered checkpoint 4119 | -8/Garrison | Discovered exit to Factory (range 6) 4119 | -8/Garrison | Discovered exit to Factory (range 57) 4119 | -8/Garrison | Discovered exit to Factory (range 53) 4291 | -8/Garrison | Triggered checkpoint 4766 | -8/Garrison | Installed Relay Interface Framework 5037 | -8/Garrison | Entered Factory 5037 | -7/Factory | Evolved 2 slots: Utility x1, Weapon x1 5319 | -7/Factory | Build established: Skirmisher 5972 | -7/Factory | Cargo convoy interrupted 6323 | -7/Factory | Lost 3 parts (2n1u) 7037 | -7/Factory | First assault squad dispatched 7544 | -7/Factory | Sucked down chute 7544 | -7/Factory | Entered Waste 7554 | -7/Waste | Spotted C-40 Crusher 7561 | -7/Waste | Spotted C-40 Crusher 7569 | -7/Waste | Spotted C-40 Crusher 7570 | -7/Waste | Crushed by Compactor (1 part destroyed) 7583 | -7/Waste | Crushed by Compactor (1 part destroyed, 1 dropped) 7586 | -7/Waste | Crushed by Compactor (1 part destroyed, 2 dropped) 7586 | -7/Waste | Spotted C-40 Crusher 7603 | -7/Waste | Spotted C-40 Crusher 7608 | -7/Waste | Discovered new exit (range 14) 7608 | -7/Waste | Spotted C-40 Crusher 7617 | -7/Waste | Lost 4 parts (1p2n1w) 7617 | -7/Waste | Identified exit to Factory 7618 | -7/Waste | Entered Factory 7879 | -7/Factory | Build established: Mutant 7927 | -7/Factory | Core integrity fell below 50% 7947 | -7/Factory | Core integrity fell below 20% 7958 | -7/Factory | Destroyed by S-27 Virus with Autogun Last Messages --------------- 07811_ System corrupted: Component data lost. 07832_ System corrupted: Heat flow error (+225). 07851_ Acquired Imp. Carbon-fiber Leg. 07858_ Discarded Relay Coupler [Grunt]. 07858_ Acquired Med. Storage Unit. 07865_ Acquired System Shield. 07885_ System corrupted: Matter fused (-9). 07911_ ALERT: All DSF locations entering lockdown mode. 07920_ Kicked S-27 Virus. 07927_ Kicked S-27 Virus out of the way. 07931_ Kicked S-27 Virus. 07934_ Neutrino Core destroyed. 07935_ Imp. Carbon-fiber Leg destroyed. 07938_ Recalibrator destroyed. 07940_ Slammed into S-27 Virus. 07942_ Destabilizing: System corrupted (+2). 07944_ E6HBOUBUDF2XTMITX 07948_ S-27 Virus destroyed. 07950_ Acquired 11 matter. Map ----- +----------------------------------------------------+ | ???????????????????????????????????? | | ???????????????????????????????????? | | ???????????????????????????????????? | | ???????????????????????????????????? | | ???????????????????????????????????? | | ???????????????????????????????????? | | ???????????????????????????????????? | | ???????????????????????????????????? | | ???????????????????????????????????? | | ???????????????????????????????????? | | ???????????????????????????????????? | | ???????????????????????? ??????????? | | ???????????????????????? ??????????? | | ???????????????????????# ??????????? | | ???????????????????????# ??????????? | | ???????????????????????# ??? ??????? | | ???????????????????????# ??? ??????? | | ???????????????????????# ?? ??????? | | ???????????????????????# #? "??????? | | ???????????????????????# #? "??????? | | ???????????????????????# ##+#??????? | | ???????????????????????#m #??????? | | ???????????????????????# #??????? | | ???????????????????????# #??????? | | ???????????????????????# #??????? | | ???????????????????????# @ #??????? | | ???????????????????????# #??????? | | ???????????????????????#*s #??????? | | ???????????????????????# #??????? | | ??? ####+############## #??????? | | ?? s #??????? | | ?? ##########??????? | | ?? ##########??????? | | ?? # #??????? | | ?? # """ #??????? | | ???+### # """ #??????? | | ??????# # """ #??????? | | ??????# # #??????? | | ??????# # """ #??????? | | ??????# # """ #??????? | | ??????# + """ #??????? | | ??????# # #??????? | | ??????######## ##########??????? | | ?????????????# # #??????? | | ?????????????# # """" #??????? | | ?????????????# # """" #??????? | | ????????????## # """" ???????? | | ????????????# + """" ???????? | | ????????????#T # """" ???????? | | ????????????## # """" ????????? | +----------------------------------------------------+ Best States ------------- Heat Dissipation 38 Energy Generation 19 Energy Capacity 315 Matter Stores 300 Matter Capacity 300 Sight Range 16 Robot Scan Range 15 Terrain Scan Density 10 EM Shielding 2 Corruption Block 8 Armor Coverage 300 Resistance: KI 20 Evasion (%) 50 Recoil Reduction 4 Relay Coupler Types 3 Relay Coupler Value 57 Authchip Count 1 Item Schematics ----------------- Core Analyzer | -7/Factory | Extracted Arc Projector | -7/Factory | Extracted Airjet | -7/Factory | Extracted Particle Gun | -7/Factory | Extracted Robot Schematics ------------------ None Fabricated ------------ Nothing Repaired ---------- Nothing Studied --------- None Alien Tech Used ----------------- None Achievements -------------- Assimilation Complete Join The Dark Side Mindtrick Challenges ------------ None Game ------ Seed DynamicArmoredMembrane Manual? 0 Play Time 01:10:55 Cumulative 46.5 hours Start 2025.12.14 @ 19:54:52 End 2025.12.17 @ 20:09:49 Sessions 7 Manual Loads 0 Difficulty Rogue Special Mode None Game No. 55 Rogue 55 Adventurer 0 Explorer 0 Win Type - Total 2 Types 2/0/0/0/0/0/0/0/0/0 Lore% 37 Gallery% 40 Achievement% 30 Wizard Run 0 Options --------- Layout 0 ASCII 0 Keyboard 1 Movement Numpad Keybinds 0 Fullscreen 1 Font 24/Smallcaps Map View 76x50 Zoom Use 0% Tactical HUD 1 Map Filters NONE Filters NONE Steam 1 RUN: 3683e4c3-1128-468c-b2c1-735ad9c44cc3